fUSD/lending_fUSD_20250511
["ID","MTS","AMOUNT","RATE_DAILY","PERIOD"]
[360703355,1746941443154,-400.0,0.00019387,2]
[360703356,1746941443164,-631.53,0.00019387,2]
[360703357,1746941443173,-400.0,0.00019387,2]
[360703358,1746941443182,-400.0,0.00019387,2]
[360703359,1746941443191,-400.0,0.00019387,2]
[360703360,1746941443201,-400.0,0.00019387,2]
[360703361,1746941443211,-400.0,0.00019387,2]
[360703362,1746941443220,-400.0,0.00019387,2]
[360703363,1746941443229,-400.0,0.00019387,2]
[360703364,1746941443238,-400.0,0.00019387,2]
[360703365,1746941443250,-400.0,0.00019387,2]
[360703366,1746941443260,-400.0,0.00019387,2]
[360703367,1746941443269,-400.0,0.00019387,2]
[360703368,1746941443278,-400.0,0.00019387,2]
[360703369,1746941443287,-400.0,0.00019387,2]
[360703370,1746941443296,-400.0,0.00019387,2]
[360703371,1746941443306,-538.85,0.00019387,2]
[360703372,1746941443316,-400.0,0.00019387,2]
[360703373,1746941443326,-400.0,0.00019387,2]
[360703374,1746941443335,-400.0,0.00019387,2]
[360703375,1746941443344,-16988.31,0.00019387,2]
[360703376,1746941443356,-400.0,0.00019387,2]
[360703377,1746941443365,-400.0,0.00019387,2]
[360703378,1746941443374,-400.0,0.00019387,2]
[360703379,1746941443383,-400.0,0.00019387,2]
[360703380,1746941443392,-400.0,0.00019387,2]
[360703381,1746941443401,-400.0,0.00019387,2]
[360703382,1746941443410,-400.0,0.00019387,2]
[360703383,1746941443420,-400.0,0.00019387,2]
[360703384,1746941443429,-400.0,0.00019387,2]
[360703385,1746941443439,-400.0,0.00019387,2]
[360703386,1746941443448,-400.0,0.00019387,2]
[360703387,1746941443457,-400.0,0.00019387,2]
[360703388,1746941443467,-400.0,0.00019387,2]
[360703389,1746941443477,-400.0,0.00019387,2]
[360703390,1746941443486,-529.36,0.00019387,2]
[360703391,1746941443496,-529.36,0.00019387,2]
[360703392,1746941443507,-400.0,0.00019387,2]
[360703393,1746941443516,-400.0,0.00019387,2]
[360703394,1746941443526,-434.61,0.00019387,2]
[360703395,1746941443537,-404.27339249,0.00019387,2]
[360703396,1746941443546,-400.0,0.00019387,2]
[360703397,1746941443555,-400.0,0.00019387,2]
[360703398,1746941443565,-400.0,0.00019387,2]
[360703399,1746941443575,-465.05,0.00019387,2]
[360703400,1746941443586,-465.05,0.00019387,2]
[360703401,1746941443596,-400.0,0.00019387,2]
[360703402,1746941443605,-400.0,0.00019387,2]
[360703403,1746941443615,-705.64,0.00019387,2]
[360703404,1746941443625,-705.64,0.00019387,2]
[360703405,1746941443635,-400.0,0.00019387,2]
[360703406,1746941443647,-400.0,0.00019387,2]
[360703407,1746941443657,-400.0,0.00019387,2]
[360703408,1746941443667,-400.0,0.00019387,2]
[360703409,1746941443676,-400.0,0.00019387,2]
[360703410,1746941443685,-400.0,0.00019387,2]
[360703411,1746941443695,-190.50460684,0.00019387,2]
[360703412,1746941443705,-400.0,0.00019387,2]
[360703413,1746941443715,-400.0,0.00019387,2]
[360703414,1746941443724,-400.0,0.00019387,2]
[360703415,1746941443734,-400.0,0.00019387,2]
[360703416,1746941443743,-400.0,0.00019387,2]
[360703417,1746941443753,-405.71833171,0.00019387,2]
[360703418,1746941443762,-1535.0,0.00019387,2]
[360703419,1746941443771,-1535.0,0.00019387,2]
[360703420,1746941443780,-400.0,0.00019387,2]
[360703421,1746941443790,-403.61604175,0.00019387,2]
[360703422,1746941443799,-400.0,0.00019387,2]
[360703423,1746941443809,-400.0,0.00019387,2]
[360703424,1746941443819,-1038.88,0.00019387,2]
[360703425,1746941443828,-400.0,0.00019387,2]
[360703426,1746941443838,-400.0,0.00019387,2]
[360703427,1746941443848,-400.0,0.00019387,2]
[360703428,1746941443858,-1038.88,0.00019387,2]
[360703429,1746941443868,-400.0,0.00019387,2]
[360703430,1746941443877,-400.0,0.00019387,2]
[360703431,1746941443887,-400.0,0.00019387,2]
[360703432,1746941443897,-400.0,0.00019387,2]
[360703433,1746941443906,-400.0,0.00019387,2]
[360703434,1746941443916,-400.0,0.00019387,2]
[360703435,1746941443925,-400.0,0.00019387,2]
[360703436,1746941443935,-400.0,0.00019387,2]
[360703437,1746941443944,-400.0,0.00019387,2]
[360703438,1746941443954,-400.0,0.00019387,2]
[360703439,1746941443964,-400.0,0.00019387,2]
[360703440,1746941443974,-400.0,0.00019387,2]
[360703441,1746941443985,-400.0,0.00019387,2]
[360703442,1746941443995,-400.0,0.00019387,2]
[360703443,1746941444004,-400.0,0.00019387,2]
[360703444,1746941444014,-400.0,0.00019387,2]
[360703445,1746941444023,-400.0,0.00019387,2]
[360703446,1746941444033,-150.0,0.00019387,2]
[360703447,1746941444043,-400.0,0.00019387,2]
[360703448,1746941444052,-400.0,0.00019387,2]
[360703449,1746941444062,-150.91606652,0.00019387,2]
[360703450,1746941444071,-400.0,0.00019387,2]
[360703451,1746941444081,-400.0,0.00019387,2]
[360703452,1746941444091,-400.0,0.00019387,2]
[360703453,1746941444100,-400.0,0.00019387,2]
[360703454,1746941444110,-400.0,0.00019387,2]
[360703455,1746941444119,-400.0,0.00019387,2]
[360703456,1746941444129,-400.0,0.00019387,2]
[360703457,1746941444138,-400.0,0.00019387,2]
[360703458,1746941444148,-400.0,0.00019387,2]
[360703459,1746941444158,-400.0,0.00019387,2]
[360703460,1746941444168,-400.0,0.00019387,2]
[360703461,1746941444178,-540.45490497,0.00019388,2]
[360703462,1746941444187,-400.0,0.00019388,2]
[360703463,1746941444197,-400.0,0.00019388,2]
[360703464,1746941444207,-519.05196203,0.00019388,2]
[360703465,1746941444216,-400.0,0.00019388,2]
[360703466,1746941444225,-400.0,0.00019388,2]
[360703467,1746941444235,-400.0,0.00019388,2]
[360703468,1746941444247,-523.17446922,0.00019388,2]
[360703469,1746941444256,-400.0,0.00019388,2]
[360703470,1746941444266,-204.61706954,0.00019388,2]
[360703471,1746941444275,-400.0,0.00019388,2]
[360703472,1746941444284,-400.0,0.00019388,2]
[360703473,1746941444295,-400.0,0.00019388,2]
[360703474,1746941444304,-400.0,0.00019388,2]
[360703475,1746941444313,-397.91933364,0.00019388,2]
[360703476,1746941444324,-400.0,0.00019388,2]
[360703477,1746941444333,-400.0,0.00019388,2]
[360703478,1746941444343,-400.0,0.00019388,2]
[360703479,1746941444352,-400.0,0.00019388,2]
[360703480,1746941444362,-400.0,0.00019388,2]
[360703481,1746941444371,-405.48036913,0.00019388,2]
[360703482,1746941444381,-400.0,0.00019388,2]
[360703483,1746941444390,-400.0,0.00019388,2]
[360703484,1746941444400,-339.15925173,0.00019388,2]
[360703485,1746941444410,-504.40652299,0.00019388,2]
[360703486,1746941444420,-400.0,0.00019388,2]
[360703487,1746941444430,-400.0,0.00019388,2]
[360703488,1746941444439,-400.0,0.00019388,2]
[360703489,1746941444449,-400.0,0.00019388,2]
[360703490,1746941444458,-400.0,0.00019388,2]
[360703491,1746941444468,-400.0,0.00019388,2]
[360703492,1746941444477,-400.0,0.00019388,2]
[360703493,1746941444487,-401.7250642,0.00019388,2]
[360703494,1746941444497,-400.0,0.00019388,2]
[360703495,1746941444507,-400.0,0.00019388,2]
[360703496,1746941444516,-340.69326932,0.00019388,2]
[360703497,1746941444526,-400.0,0.00019388,2]
[360703498,1746941444535,-400.0,0.00019388,2]
[360703499,1746941444544,-400.0,0.00019388,2]
[360703500,1746941444554,-510.55816799,0.00019388,2]
[360703501,1746941444564,-501.81829406,0.00019388,2]
[360703502,1746941444574,-400.0,0.00019388,2]
[360703503,1746941444583,-400.0,0.00019388,2]
[360703504,1746941444592,-400.0,0.00019388,2]
[360703505,1746941444601,-386.6980963,0.00019388,2]
[360703506,1746941444611,-250.0,0.00019388,2]
[360703507,1746941444620,-400.0,0.00019388,2]
[360703508,1746941444630,-156.08790463,0.00019388,2]
[360703509,1746941444640,-400.0,0.00019388,2]
[360703510,1746941444649,-402.70396261,0.00019388,2]
[360703511,1746941444659,-400.0,0.00019388,2]
[360703512,1746941444669,-400.0,0.00019388,2]
[360703513,1746941444679,-400.0,0.00019388,2]
[360703530,1746941444859,-400.0,0.00019388,2]
[360703531,1746941444870,-400.0,0.00019388,2]
[360703532,1746941444881,-400.0,0.00019388,2]
[360703533,1746941444890,-400.0,0.00019388,2]
[360703534,1746941444900,-400.0,0.00019388,2]
[360703535,1746941444910,-400.0,0.00019388,2]
[360703536,1746941444921,-400.0,0.00019388,2]
[360703537,1746941444932,-400.62538518,0.00019388,2]
[360703538,1746941444942,-400.0,0.00019388,2]
[360703539,1746941444952,-502.23250671,0.00019388,2]
[360703540,1746941444962,-400.0,0.00019388,2]
[360703541,1746941444971,-476.75247352,0.00019388,2]
[360703542,1746941444981,-400.0,0.00019388,2]
[360703543,1746941444991,-400.0,0.00019388,2]
[360703544,1746941445000,-400.0,0.00019388,2]
[360703545,1746941445011,-401.16625263,0.00019388,2]
[360703546,1746941445021,-400.0,0.00019388,2]
[360703547,1746941445030,-400.0,0.00019388,2]
[360703548,1746941445040,-400.0,0.00019388,2]
[360703549,1746941445051,-402.38920822,0.00019388,2]
[360703550,1746941445061,-267.30945323,0.00019388,2]
[360703551,1746941445070,-400.0,0.00019388,2]
[360703552,1746941445080,-400.0,0.00019388,2]
[360703553,1746941445090,-400.0,0.00019388,2]
[360703554,1746941445100,-400.0,0.00019388,2]
[360703555,1746941445110,-400.0,0.00019388,2]
[360703556,1746941445119,-400.0,0.00019388,2]
[360703557,1746941445128,-408.04343269,0.00019388,2]
[360703558,1746941445138,-400.0,0.00019388,2]
[360703559,1746941445148,-400.0,0.00019388,2]
[360703560,1746941445157,-400.0,0.00019388,2]
[360703561,1746941445169,-400.0,0.00019388,2]
[360703562,1746941445178,-400.0,0.00019388,2]
[360703563,1746941445187,-400.0,0.00019388,2]
[360703564,1746941445197,-349.41319124,0.00019388,2]
[360703565,1746941445208,-400.0,0.00019388,2]
[360703566,1746941445217,-469.76,0.00019388,2]
[360703567,1746941445227,-400.0,0.00019388,2]
[360703568,1746941445236,-400.0,0.00019388,2]
[360703569,1746941445249,-500.0,0.00019388,2]
[360703570,1746941445259,-400.0,0.00019388,2]
[360703571,1746941445268,-400.0,0.00019388,2]
[360703572,1746941445278,-400.0,0.00019388,2]
[360703573,1746941445287,-400.0,0.00019388,2]
[360703574,1746941445298,-400.0,0.00019388,2]
[360703575,1746941445307,-506.55680244,0.00019388,2]
[360703576,1746941445318,-495.6450952,0.00019388,2]
[360703577,1746941445327,-400.0,0.00019388,2]
[360703578,1746941445337,-424.68,0.00019388,2]
[360703579,1746941445346,-410.49136705,0.00019388,2]
[360703580,1746941445356,-400.0,0.00019388,2]
[360703581,1746941445365,-400.0,0.00019388,2]
[360703582,1746941445374,-400.0,0.00019388,2]
[360703583,1746941445384,-400.88870164,0.00019388,2]
[360703584,1746941445394,-400.0,0.00019388,2]
[360703585,1746941445404,-400.0,0.00019388,2]
[360703586,1746941445415,-400.0,0.00019388,2]
[360703587,1746941445425,-400.0,0.00019388,2]
[360703588,1746941445434,-400.0,0.00019388,2]
[360703589,1746941445443,-400.0,0.00019388,2]
[360703590,1746941445454,-400.0,0.00019388,2]
[360703591,1746941445463,-400.0,0.00019388,2]
[360703592,1746941445472,-404.84318556,0.00019388,2]
[360703593,1746941445482,-450.73331926,0.00019388,2]
[360703594,1746941445491,-402.7056142,0.00019388,2]
[360703595,1746941445501,-400.0,0.00019388,2]
[360703596,1746941445511,-400.0,0.00019388,2]
[360703597,1746941445522,-400.0,0.00019388,2]
[360703598,1746941445534,-400.0,0.00019388,2]
[360703599,1746941445544,-493.14371665,0.00019388,2]
[360703600,1746941445553,-206.95184098,0.00019388,2]
[360703601,1746941445563,-400.0,0.00019388,2]
[360703602,1746941445572,-400.0,0.00019388,2]
[360703603,1746941445581,-454.15903257,0.00019388,2]
[360703604,1746941445590,-263.90653436,0.00019388,2]
[360703606,1746941445600,-400.0,0.00019388,2]
[360703607,1746941445609,-400.0,0.00019388,2]
[360703608,1746941445618,-400.0,0.00019388,2]
[360703609,1746941445627,-417.43089638,0.00019388,2]
[360703610,1746941445637,-400.0,0.00019388,2]
[360703611,1746941445647,-400.0,0.00019388,2]
[360703612,1746941445656,-400.0,0.00019388,2]
[360703613,1746941445665,-419.88464146,0.00019388,2]
[360703614,1746941445677,-406.610694,0.00019388,2]
[360703615,1746941445686,-400.0,0.00019388,2]
[360703616,1746941445695,-400.0,0.00019388,2]
[360703617,1746941445705,-400.0,0.00019388,2]
[360703618,1746941445714,-199.72,0.00019388,2]
[360703619,1746941445725,-403.92312263,0.00019388,2]
[360703620,1746941445735,-400.0,0.00019388,2]
[360703621,1746941445745,-400.0,0.00019388,2]
[360703622,1746941445755,-400.0,0.00019388,2]
[360703623,1746941445765,-410.72621875,0.00019388,2]
[360703624,1746941445774,-530.59848353,0.00019388,2]
[360703625,1746941445784,-463.61265525,0.00019388,2]
[360703626,1746941445793,-404.71577477,0.00019388,2]
[360703627,1746941445803,-406.10112578,0.00019388,2]
[360703628,1746941445812,-400.0,0.00019388,2]
[360703629,1746941445821,-400.0,0.00019388,2]
[360703630,1746941445831,-400.0,0.00019388,2]
[360703631,1746941445840,-405.61920999,0.00019388,2]
[360703632,1746941445850,-403.48279771,0.00019388,2]
[360703633,1746941445859,-400.0,0.00019388,2]
[360703634,1746941445871,-401.61890349,0.00019388,2]
[360703635,1746941445880,-400.0,0.00019388,2]
[360703636,1746941445890,-400.0,0.00019388,2]
[360703637,1746941445900,-400.0,0.00019388,2]
[360703638,1746941445910,-341.7745516,0.00019388,2]
[360703639,1746941445920,-515.87098989,0.00019388,2]
[360703640,1746941445929,-471.55690177,0.00019388,2]
[360703641,1746941445939,-500.0,0.00019388,2]
[360703642,1746941445948,-420.81836201,0.00019388,2]
[360703643,1746941445958,-400.0,0.00019388,2]
[360703644,1746941445967,-400.0,0.00019388,2]
[360703645,1746941445977,-400.0,0.00019388,2]
[360703646,1746941445987,-411.9255035,0.00019388,2]
[360703647,1746941445997,-404.40493011,0.00019388,2]
[360703648,1746941446007,-400.0,0.00019388,2]
[360703649,1746941446016,-400.0,0.00019388,2]
[360703650,1746941446026,-402.29593732,0.00019388,2]
[360703651,1746941446035,-400.56413133,0.00019388,2]
[360703652,1746941446044,-254.04390746,0.00019388,2]
[360703653,1746941446054,-410.84139246,0.00019388,2]
[360703654,1746941446064,-400.0,0.00019388,2]
[360703655,1746941446073,-400.0,0.00019388,2]
[360703656,1746941446082,-400.0,0.00019388,2]
[360703657,1746941446091,-400.77840812,0.00019388,2]
[360703658,1746941446100,-400.0,0.00019388,2]
[360703659,1746941446110,-413.07073844,0.00019388,2]
[360703660,1746941446119,-403.28837137,0.00019388,2]
[360703661,1746941446129,-414.69927701,0.00019388,2]
[360703662,1746941446138,-407.19068146,0.00019388,2]
[360703663,1746941446147,-400.0,0.00019388,2]
[360703665,1746941446157,-400.0,0.00019388,2]
[360703666,1746941446166,-451.37,0.00019388,2]
[360703667,1746941446176,-400.0,0.00019388,2]
[360703668,1746941446185,-427.99691936,0.00019388,2]
[360703669,1746941446194,-405.58842153,0.00019388,2]
[360703670,1746941446203,-400.0,0.00019388,2]
[360703671,1746941446214,-404.66995985,0.00019388,2]
[360703672,1746941446224,-400.0,0.00019388,2]
[360703673,1746941446234,-403.6761397,0.00019388,2]
[360703674,1746941446248,-285.71060262,0.00019388,2]
[360703675,1746941446257,-412.53686638,0.00019388,2]
[360703677,1746941446267,-400.0,0.00019388,2]
[360703679,1746941446276,-400.0,0.00019388,2]
[360703680,1746941446287,-404.37387581,0.00019388,2]
[360703681,1746941446296,-501.08965256,0.00019388,2]
[360703682,1746941446305,-413.38071309,0.00019388,2]
[360703683,1746941446315,-406.04439107,0.00019388,2]
[360703684,1746941446327,-470.0,0.00019388,2]
[360703685,1746941446336,-402.70141798,0.00019388,2]
[360703686,1746941446345,-408.0267919,0.00019388,2]
[360703687,1746941446354,-404.4782995,0.00019388,2]
[360703688,1746941446364,-417.28898047,0.00019388,2]
[360703689,1746941446373,-400.0,0.00019388,2]
[360703690,1746941446382,-400.63852969,0.00019388,2]
[360703691,1746941446391,-400.0,0.00019388,2]
[360703692,1746941446400,-466.53299819,0.00019388,2]
[360703693,1746941446409,-449.35119015,0.00019388,2]
[360703694,1746941446421,-410.64169416,0.00019388,2]
[360703695,1746941446430,-402.39946497,0.00019388,2]
[360703696,1746941446439,-401.90289791,0.00019388,2]
[360703697,1746941446449,-400.0,0.00019388,2]
[360703698,1746941446458,-400.0,0.00019388,2]
[360703699,1746941446467,-400.0,0.00019388,2]
[360703700,1746941446476,-400.0,0.00019388,2]
[360703701,1746941446486,-405.65940489,0.00019388,2]
[360703702,1746941446495,-400.0,0.00019388,2]
[360703703,1746941446505,-404.64199421,0.00019388,2]
[360703704,1746941446514,-400.0,0.00019388,2]
[360703705,1746941446524,-422.32742722,0.00019388,2]
[360703706,1746941446534,-400.0,0.00019388,2]
[360703707,1746941446545,-380.0,0.00019388,2]
[360703708,1746941446555,-403.30064496,0.00019388,2]
[360703709,1746941446565,-252.07476344,0.00019388,2]
[360703710,1746941446575,-502.23923462,0.00019388,2]
[360703711,1746941446584,-406.55403592,0.00019388,2]
[360703712,1746941446593,-454.98222305,0.00019388,2]
[360703713,1746941446602,-401.40898459,0.00019388,2]
[360703714,1746941446611,-405.4360429,0.00019388,2]
[360703715,1746941446620,-408.36895135,0.00019388,2]
[360703716,1746941446629,-400.0,0.00019388,2]
[360703717,1746941446638,-415.08224402,0.00019388,2]
[360703718,1746941446649,-402.08454274,0.00019388,2]
[360703719,1746941446659,-400.0,0.00019388,2]
[360703720,1746941446668,-406.01196755,0.00019388,2]
[360703721,1746941446678,-408.43486855,0.00019388,2]
[360703722,1746941446687,-400.0,0.00019388,2]
[360703723,1746941446696,-400.0,0.00019388,2]
[360703724,1746941446705,-407.21697155,0.00019388,2]
[360703725,1746941446714,-400.0,0.00019388,2]
[360703726,1746941446723,-413.98203739,0.00019388,2]
[360703727,1746941446732,-406.31001071,0.00019388,2]
[360703728,1746941446741,-409.58844809,0.00019388,2]
[360703729,1746941446751,-305.15687876,0.00019388,2]
[360703730,1746941446760,-388.00471082,0.00019388,2]
[360703731,1746941446769,-400.0,0.00019388,2]
[360703732,1746941446779,-350.29384776,0.00019388,2]
[360703733,1746941446789,-408.58199353,0.00019388,2]
[360703734,1746941446800,-400.0,0.00019388,2]
[360703735,1746941446809,-400.0,0.00019388,2]
[360703736,1746941446818,-400.0,0.00019388,2]
[360703737,1746941446828,-422.57415154,0.00019388,2]
[360703738,1746941446837,-400.0,0.00019388,2]
[360703739,1746941446847,-400.0,0.00019388,2]
[360703740,1746941446856,-529.92105511,0.00019388,2]
[360703741,1746941446865,-400.0,0.00019388,2]
[360703742,1746941446874,-400.0,0.00019388,2]
[360703743,1746941446884,-400.0,0.00019388,2]
[360703744,1746941446893,-400.0,0.00019388,2]
[360703745,1746941446902,-409.81842776,0.00019388,2]
[360703746,1746941446912,-400.0,0.00019388,2]
[360703747,1746941446922,-400.0,0.00019388,2]
[360703748,1746941446932,-400.0,0.00019388,2]
[360703749,1746941446942,-400.0,0.00019388,2]
[360703750,1746941446951,-400.0,0.00019388,2]
[360703751,1746941446960,-400.0,0.00019388,2]
[360703752,1746941446971,-400.0,0.00019388,2]
[360703753,1746941446980,-400.0,0.00019388,2]
[360703754,1746941446990,-400.0,0.00019388,2]
[360703755,1746941446999,-400.0,0.00019388,2]
[360703756,1746941447008,-400.0,0.00019388,2]
[360703757,1746941447017,-248.7839621,0.00019388,2]
[360703758,1746941447027,-150.0,0.00019388,2]
[360703759,1746941447036,-400.0,0.00019388,2]
[360703760,1746941447046,-400.0,0.00019388,2]
[360703761,1746941447056,-400.0,0.00019388,2]
[360703762,1746941447065,-400.0,0.00019388,2]
[360703763,1746941447074,-400.0,0.00019388,2]
[360703764,1746941447083,-400.0,0.00019388,2]
[360703765,1746941447092,-368.62676652,0.00019388,2]
[360703766,1746941447102,-400.0,0.00019388,2]
[360703767,1746941447113,-400.0,0.00019388,2]
[360703768,1746941447122,-400.0,0.00019388,2]
[360703769,1746941447133,-400.0,0.00019388,2]
[360703770,1746941447144,-537.85175019,0.00019388,2]
[360703771,1746941447154,-402.95707363,0.00019388,2]
[360703772,1746941447166,-470.67833548,0.00019388,2]
[360703773,1746941447176,-400.0,0.00019388,2]
[360703774,1746941447185,-400.0,0.00019388,2]
[360703775,1746941447194,-512.63396778,0.00019388,2]
[360703776,1746941447204,-400.0,0.00019388,2]
[360703777,1746941447213,-400.0,0.00019388,2]
[360703778,1746941447223,-400.0,0.00019388,2]
[360703779,1746941447233,-400.0,0.00019388,2]
[360703780,1746941447287,-400.0,0.00019388,2]
[360703781,1746941447297,-400.0,0.00019388,2]
[360703782,1746941447306,-400.0,0.00019388,2]
[360703783,1746941447315,-400.0,0.00019388,2]
[360703784,1746941447327,-424.33790947,0.00019388,2]
[360703785,1746941447336,-400.0,0.00019388,2]
[360703786,1746941447346,-400.0,0.00019388,2]
[360703787,1746941447357,-400.0,0.00019388,2]
[360703788,1746941447366,-400.0,0.00019388,2]
[360703789,1746941447375,-400.0,0.00019388,2]
[360703790,1746941447384,-400.0,0.00019388,2]
[360703791,1746941447393,-400.0,0.00019388,2]
[360703792,1746941447403,-400.0,0.00019388,2]
[360703793,1746941447414,-203.93197375,0.00019388,2]
[360703794,1746941447424,-400.0,0.00019388,2]
[360703795,1746941447433,-400.0,0.00019388,2]
[360703796,1746941447442,-400.0,0.00019388,2]
[360703797,1746941447451,-410.84056679,0.00019388,2]
[360703798,1746941447461,-402.18413853,0.00019388,2]
[360703799,1746941447470,-400.0,0.00019388,2]
[360703800,1746941447479,-400.0,0.00019388,2]
[360703801,1746941447488,-400.0,0.00019388,2]
[360703802,1746941447497,-400.0,0.00019388,2]
[360703803,1746941447506,-400.0,0.00019388,2]
[360703804,1746941447515,-400.0,0.00019388,2]
[360703805,1746941447525,-400.0,0.00019388,2]
[360703806,1746941447534,-400.0,0.00019388,2]
[360703807,1746941447543,-400.0,0.00019388,2]
[360703808,1746941447552,-400.0,0.00019388,2]
[360703809,1746941447562,-266.91,0.00019388,2]
[360703810,1746941447571,-400.0,0.00019388,2]
[360703811,1746941447580,-400.0,0.00019388,2]
[360703812,1746941447589,-400.0,0.00019388,2]
[360703813,1746941447598,-400.0,0.00019388,2]
[360703814,1746941447607,-400.0,0.00019388,2]
[360703815,1746941447615,-400.0,0.00019388,2]
[360703816,1746941447624,-400.0,0.00019388,2]
[360703817,1746941447633,-407.27120518,0.00019388,2]
[360703818,1746941447642,-546.46,0.00019388,2]
[360703819,1746941447651,-400.0,0.00019388,2]
[360703820,1746941447660,-400.0,0.00019388,2]
[360703821,1746941447671,-400.0,0.00019388,2]
[360703822,1746941447679,-400.0,0.00019388,2]
[360703823,1746941447688,-400.0,0.00019388,2]
[360703824,1746941447697,-525.26,0.00019388,2]
[360703825,1746941447706,-400.0,0.00019388,2]
[360703826,1746941447715,-400.0,0.00019388,2]
[360703827,1746941447724,-400.0,0.00019388,2]
[360703828,1746941447733,-400.0,0.00019388,2]
[360703829,1746941447742,-400.0,0.00019388,2]
[360703830,1746941447751,-612.69809436,0.00019388,2]
[360703831,1746941447760,-246.8227624,0.00019388,2]
[360703832,1746941447770,-400.0,0.00019388,2]
[360703833,1746941447779,-397.69856023,0.00019388,2]
[360703834,1746941447788,-400.0,0.00019388,2]
[360703835,1746941447798,-400.0,0.00019388,2]
[360703836,1746941447807,-400.0,0.00019388,2]
[360703837,1746941447816,-400.0,0.00019388,2]
[360703838,1746941447826,-430.29182139,0.00019388,2]
[360703839,1746941447835,-400.0,0.00019388,2]
[360703840,1746941447844,-400.0,0.00019388,2]
[360703841,1746941447853,-400.0,0.00019388,2]
[360703842,1746941447862,-241.02188542,0.00019388,2]
[360703843,1746941447871,-400.0,0.00019388,2]
[360703844,1746941447881,-430.81655707,0.00019388,2]
[360703845,1746941447890,-400.0,0.00019388,2]
[360703846,1746941447899,-400.0,0.00019388,2]
[360703847,1746941447909,-400.0,0.00019388,2]
[360703848,1746941447919,-400.0,0.00019388,2]
[360703849,1746941447928,-500.0,0.00019388,2]
[360703850,1746941447937,-400.0,0.00019388,2]
[360703851,1746941447946,-400.0,0.00019388,2]
[360703852,1746941447956,-400.0,0.00019388,2]
[360703853,1746941447965,-400.0,0.00019388,2]
[360703854,1746941447975,-400.0,0.00019388,2]
[360703855,1746941447984,-400.0,0.00019388,2]
[360703856,1746941447993,-400.0,0.00019388,2]
[360703857,1746941448002,-386.75123554,0.00019388,2]
[360703858,1746941448011,-400.0,0.00019388,2]
[360703859,1746941448020,-400.0,0.00019388,2]
[360703860,1746941448029,-400.0,0.00019388,2]
[360703861,1746941448038,-400.0,0.00019388,2]
[360703862,1746941448047,-403.96622966,0.00019388,2]
[360703863,1746941448057,-410.60112258,0.00019388,2]
[360703864,1746941448067,-302.09543892,0.00019388,2]
[360703865,1746941448076,-230.09633251,0.00019388,2]
[360703866,1746941448085,-291.88012347,0.00019388,2]
[360703867,1746941448094,-400.0,0.00019388,2]
[360703868,1746941448103,-400.0,0.00019388,2]
[360703869,1746941448112,-400.0,0.00019388,2]
[360703870,1746941448122,-404.81081284,0.00019388,2]
[360703871,1746941448131,-400.0,0.00019388,2]
[360703872,1746941448140,-500.0,0.00019388,2]
[360703873,1746941448150,-400.0,0.00019388,2]
[360703874,1746941448159,-400.0,0.00019388,2]